fUST/lending_fUST_20250927
["ID","MTS","AMOUNT","RATE_DAILY","PERIOD"]
[387856773,1758930695996,-2323.54,0.00046849,120]
[387856774,1758930696008,-323.51854215,0.00046849,120]
[387856775,1758930696020,-1456.57,0.00046849,120]
[387856776,1758930696033,-2753.73,0.00046849,120]
[387856777,1758930696045,-570.71,0.00046849,120]
[387856778,1758930696057,-480.0,0.00046849,120]
[387856779,1758930696070,-4506.41,0.00046849,120]
[387856780,1758930696082,-480.0,0.00046849,120]
[387856781,1758930696095,-480.0,0.00046849,120]
[387856782,1758930696107,-2881.1,0.00046849,21]
[387856783,1758930696119,-2820.16,0.00046849,120]
[387856784,1758930696132,-480.88757044,0.00046849,120]
[387856785,1758930696144,-536.62,0.00046849,120]
[387856786,1758930696157,-1867.94,0.00046849,120]
[387856787,1758930696169,-980.13,0.00046849,120]
[387856788,1758930696181,-888.34,0.00046849,120]
[387856789,1758930696193,-9374.26,0.00046849,120]
[387856790,1758930696204,-480.0,0.00046849,120]
[387856791,1758930696215,-728.57,0.00046849,120]
[387856792,1758930696227,-480.0,0.00046849,120]
[387856793,1758930696239,-480.0,0.00046849,120]
[387856794,1758930696251,-578.7,0.00046849,120]
[387856795,1758930696263,-480.0,0.00046849,120]
[387856796,1758930696273,-2171.98,0.00046849,120]
[387856797,1758930696286,-480.0,0.00046849,120]
[387856798,1758930696297,-482.02246985,0.00046849,120]
[387856799,1758930696309,-5982.08,0.00046849,120]
[387856800,1758930696321,-480.0,0.00046849,7]
[387856801,1758930696333,-480.0,0.00046849,120]
[387856802,1758930696345,-480.0,0.00046849,120]
[387856803,1758930696358,-1178.96,0.00046849,120]
[387856804,1758930696370,-603.24,0.00046849,120]
[387856805,1758930696382,-480.0,0.00046849,120]
[387856806,1758930696394,-12312.42,0.00046849,120]
[387856807,1758930696406,-3348.44,0.00046849,120]
[387856808,1758930696419,-480.0,0.00046849,120]
[387856809,1758930696431,-480.0,0.00046849,120]
[387856810,1758930696443,-480.0,0.00046849,120]
[387856811,1758930696456,-480.0,0.00046849,120]
[387856812,1758930696467,-480.0,0.00046849,120]
[387856813,1758930696479,-480.0,0.00046849,120]
[387856814,1758930696492,-480.0,0.00046849,120]
[387856815,1758930696503,-480.0,0.00046849,120]
[387856816,1758930696515,-761.77,0.00046849,120]
[387856817,1758930696527,-2476.81,0.00046849,120]
[387856818,1758930696539,-480.0,0.00046849,120]
[387856819,1758930696551,-847.29,0.00046849,120]
[387856820,1758930696562,-3391.21,0.00046849,120]
[387856821,1758930696574,-1309.23,0.00046849,120]
[387856822,1758930696585,-480.0,0.00046849,120]
[387856823,1758930696597,-480.0,0.00046849,120]
[387856824,1758930696609,-480.0,0.00046849,120]
[387856825,1758930696621,-480.0,0.00046849,120]
[387856826,1758930696632,-645.27,0.00046849,120]
[387856827,1758930696644,-480.0,0.00046849,120]
[387856828,1758930696655,-480.0,0.00046849,120]
[387856829,1758930696667,-480.0,0.00046849,120]
[387856830,1758930696681,-948.72,0.00046849,120]
[387856831,1758930696693,-497.23385668,0.00046849,120]
[387856832,1758930696704,-480.0,0.00046849,120]
[387856833,1758930696716,-481.51647289,0.00046849,120]
[387856834,1758930696727,-480.0,0.00046849,120]
[387856835,1758930696739,-480.0,0.00046849,120]
[387856836,1758930696752,-487.63232474,0.00046849,120]
[387856837,1758930696764,-633.74,0.00046849,120]
[387856838,1758930696776,-480.0,0.00046849,120]
[387856839,1758930696787,-3378.19,0.00046849,120]
[387856840,1758930696799,-2958.62,0.00046849,120]
[387856841,1758930696810,-13211.37,0.00046849,120]
[387856842,1758930696821,-480.0,0.00046849,120]
[387856843,1758930696832,-480.0,0.00046849,120]
[387856844,1758930696843,-4724.16,0.00046849,120]
[387856845,1758930696854,-480.0,0.00046849,120]
[387856846,1758930696866,-480.0,0.00046849,120]
[387856847,1758930696877,-480.0,0.00046849,20]
[387856848,1758930696889,-1029.55,0.00046849,30]
[387856849,1758930696900,-480.0,0.00046849,120]
[387856850,1758930696911,-480.0,0.00046849,120]
[387856851,1758930696923,-805.78,0.00046849,120]
[387856852,1758930696934,-912.9,0.00046849,120]
[387856853,1758930696945,-480.0,0.00046849,120]
[387856854,1758930696956,-172.52741621,0.00046849,120]
[387856855,1758930696967,-480.0,0.00046849,120]
[387856856,1758930696979,-639.03,0.00046849,120]
[387856857,1758930696991,-607.64,0.00046849,120]
[387856858,1758930697003,-480.0,0.00046849,120]
[387856859,1758930697015,-480.0,0.00046849,120]
[387856860,1758930697027,-540.39,0.00046849,120]
[387856861,1758930697038,-480.0,0.00046849,120]
[387856862,1758930697051,-1971.41,0.00046849,120]
[387856863,1758930697061,-480.0,0.00046849,120]
[387856864,1758930697073,-480.0,0.00046849,120]
[387856865,1758930697085,-480.0,0.00046849,120]
[387856866,1758930697096,-2584.13,0.00046849,120]
[387856867,1758930697107,-481.50716956,0.00046849,120]
[387856868,1758930697119,-1397.29,0.00046849,120]
[387856869,1758930697131,-491.15912749,0.00046849,120]
[387856870,1758930697142,-480.0,0.00046849,120]
[387856871,1758930697153,-501.82354498,0.00046849,120]
[387856872,1758930697166,-1076.06,0.00046849,120]
[387856873,1758930697177,-480.0,0.00046849,120]
[387856874,1758930697188,-3296.42,0.00046849,120]
[387856875,1758930697199,-480.0,0.00046849,120]
[387856876,1758930697210,-480.0,0.00046849,120]
[387856877,1758930697221,-480.0,0.00046849,120]
[387856878,1758930697233,-480.0,0.00046849,120]
[387856879,1758930697245,-480.0,0.00046849,120]
[387856880,1758930697255,-480.0,0.00046849,120]
[387856881,1758930697267,-484.46483924,0.00046849,120]
[387856882,1758930697278,-480.0,0.00046849,120]
[387856883,1758930697289,-2000.0,0.000469,120]
[387856884,1758930697301,-151.0,0.00046912,120]
[387856885,1758930697312,-4012.16207705,0.00046916,104]
[387856886,1758930697323,-196.518717,0.00046916,120]
[387856887,1758930697334,-196.518717,0.00046916,120]
[387856888,1758930697345,-196.518717,0.00046916,120]
[387856889,1758930697356,-196.518724,0.00046916,120]
[387856890,1758930697368,-151.0,0.00046916,120]
[387856891,1758930697378,-288.960937,0.00046916,120]
[387856892,1758930697390,-288.960937,0.00046916,120]
[387856893,1758930697402,-288.960937,0.00046916,120]
[387856894,1758930697413,-288.960938,0.00046916,120]
[387856895,1758930697424,-151.0,0.00046916,120]
[387856896,1758930697435,-151.0,0.00046916,120]
[387856897,1758930697447,-261.325187,0.00046916,120]
[387856898,1758930697458,-151.0,0.00046916,120]
[387856899,1758930697469,-233.71402077,0.00047,30]
[387856900,1758930697480,-219.1,0.00047073,120]
[387856901,1758930697491,-150.0,0.000471,2]
[387856902,1758930697502,-8088.87,0.000471,14]
[387856903,1758930697513,-341.99522,0.000471,120]
[387856904,1758930697527,-341.99522,0.000471,120]
[387856905,1758930697538,-341.99522,0.000471,120]
[387856906,1758930697549,-341.995211,0.000471,120]
[387856907,1758930697862,-445.065496,0.000471,120]
[387856908,1758930697875,-151.0,0.000471,120]
[387856909,1758930697884,-445.065496,0.000471,120]
[387856910,1758930697894,-151.0,0.000471,120]
[387856911,1758930697904,-445.065496,0.000471,120]
[387856912,1758930697913,-445.065496,0.000471,120]
[387856913,1758930697923,-284.509304,0.000471,120]
[387856914,1758930697932,-284.509304,0.000471,120]
[387856915,1758930697941,-284.509304,0.000471,120]
[387856916,1758930697951,-284.5093,0.000471,120]
[387856917,1758930697960,-151.0,0.000471,120]
[387856918,1758930697970,-3232.118007,0.000471,120]
[387856919,1758930697979,-921.896622,0.000471,120]
[387856920,1758930697989,-151.0,0.000471,120]
[387856921,1758930697998,-3232.118007,0.000471,120]
[387856922,1758930698007,-921.896622,0.000471,120]
[387856923,1758930698018,-3232.118007,0.000471,120]
[387856924,1758930698028,-921.896622,0.000471,120]
[387856925,1758930698037,-213.97454,0.000471,120]
[387856926,1758930698047,-3232.118007,0.000471,120]
[387856927,1758930698056,-921.896615,0.000471,120]
[387856928,1758930698066,-213.97454,0.000471,120]
[387856929,1758930698075,-213.97454,0.000471,120]
[387856930,1758930698085,-213.974534,0.000471,120]
[387856931,1758930698093,-480.0,0.00047123,7]
[387856932,1758930698103,-480.0,0.00047123,120]
[387856933,1758930698112,-589.43,0.00047123,120]
[387856934,1758930698121,-580.96,0.00047123,120]
[387856935,1758930698130,-462.06972202,0.00047123,120]
[387856936,1758930698139,-480.0,0.00047123,120]
[387856937,1758930698148,-480.0,0.00047123,120]
[387856938,1758930698157,-480.0,0.00047123,120]
[387856939,1758930698166,-480.0,0.00047123,120]
[387856940,1758930698175,-480.0,0.00047123,120]
[387856941,1758930698185,-217.73058831,0.00047123,120]
[387856942,1758930698194,-480.0,0.00047123,120]
[387856943,1758930698203,-480.0,0.00047123,120]
[387856944,1758930698212,-480.0,0.00047123,120]
[387856945,1758930698222,-480.0,0.00047123,120]
[387856946,1758930698231,-480.0,0.00047123,120]
[387856947,1758930698240,-480.0,0.00047123,120]
[387856948,1758930698249,-480.0,0.00047123,120]
[387856949,1758930698258,-480.0,0.00047123,120]
[387856950,1758930698267,-480.0,0.00047123,120]
[387856951,1758930698276,-480.0,0.00047123,120]
[387856952,1758930698286,-1085.97,0.00047123,120]
[387856953,1758930698295,-480.0,0.00047123,120]
[387856954,1758930698305,-480.0,0.00047123,120]
[387856955,1758930698314,-480.0,0.00047123,120]
[387856956,1758930698323,-480.0,0.00047123,120]
[387856957,1758930698332,-480.0,0.00047123,120]
[387856958,1758930698341,-480.0,0.00047123,120]
[387856959,1758930698350,-480.0,0.00047123,120]
[387856960,1758930698359,-480.0,0.00047123,120]
[387856961,1758930698369,-487.1313831,0.00047123,120]
[387856962,1758930698378,-505.80109489,0.00047123,120]
[387856963,1758930698387,-480.0,0.00047123,120]
[387856964,1758930698396,-300.17,0.00047123,120]
[387856965,1758930698406,-480.0,0.00047123,120]
[387856966,1758930698416,-480.0,0.00047123,120]
[387856967,1758930698426,-480.0,0.00047123,120]
[387856968,1758930698436,-307.42018252,0.00047123,120]
[387856969,1758930698445,-480.0,0.00047123,120]
[387856970,1758930698455,-480.0,0.00047123,120]
[387856971,1758930698464,-490.47,0.00047123,120]
[387856972,1758930698474,-480.0,0.00047123,120]
[387856973,1758930698483,-480.0,0.00047123,120]
[387856974,1758930698493,-480.0,0.00047123,120]
[387856975,1758930698502,-480.0,0.00047123,120]
[387856976,1758930698511,-480.0,0.00047123,120]
[387856977,1758930698520,-480.0,0.00047123,120]
[387856978,1758930698530,-480.0,0.00047123,120]
[387856979,1758930698539,-480.0,0.00047123,120]
[387856980,1758930698548,-480.0,0.00047123,120]
[387856981,1758930698558,-480.0,0.00047123,120]
[387856982,1758930698567,-480.0,0.00047123,100]
[387856983,1758930698576,-480.0,0.00047123,120]
[387856984,1758930698585,-480.0,0.00047123,120]
[387856985,1758930698594,-480.0,0.00047123,120]
[387856986,1758930698603,-480.0,0.00047123,120]
[387856987,1758930698612,-480.0,0.00047123,120]
[387856988,1758930698622,-480.0,0.00047123,120]
[387856989,1758930698631,-1480.61,0.00047123,120]
[387856990,1758930698640,-549.86,0.00047123,120]
[387856991,1758930698648,-480.0,0.00047123,120]
[387856992,1758930698657,-480.0,0.00047123,120]
[387856993,1758930698667,-480.0,0.00047123,120]
[387856994,1758930698679,-480.0,0.00047123,120]
[387856995,1758930698689,-500.0,0.00047123,14]
[387856996,1758930698698,-480.0,0.00047123,120]
[387856997,1758930698707,-480.0,0.00047123,120]
[387856998,1758930698717,-480.0,0.00047123,120]
[387856999,1758930698726,-480.0,0.00047123,120]
[387857000,1758930698735,-505.55311584,0.00047123,120]
[387857001,1758930698745,-519.62,0.00047123,120]
[387857002,1758930698755,-480.0,0.00047123,120]
[387857003,1758930698765,-1520.5,0.00047123,120]
[387857004,1758930698774,-609.63,0.00047123,120]
[387857005,1758930698783,-480.0,0.00047123,120]
[387857006,1758930698792,-480.0,0.00047123,120]
[387857007,1758930698801,-480.0,0.00047123,120]
[387857008,1758930698810,-480.0,0.00047123,120]
[387857009,1758930698819,-480.0,0.00047123,120]
[387857010,1758930698827,-480.0,0.00047123,120]
[387857011,1758930698836,-480.0,0.00047123,120]
[387857012,1758930698846,-480.0,0.00047123,120]
[387857013,1758930698856,-480.0,0.00047123,120]
[387857014,1758930698865,-831.39,0.00047123,120]
[387857015,1758930698874,-761.44,0.00047123,120]
[387857016,1758930698883,-480.0,0.00047123,120]
[387857017,1758930698892,-480.0,0.00047123,120]
[387857018,1758930698901,-480.0,0.00047123,120]
[387857019,1758930698911,-480.0,0.00047123,120]
[387857020,1758930698920,-480.0,0.00047123,120]
[387857021,1758930698929,-480.0,0.00047123,120]
[387857022,1758930698938,-480.0,0.00047123,120]
[387857023,1758930698947,-480.0,0.00047123,120]
[387857024,1758930698957,-153.03167881,0.00047123,120]
[387857025,1758930698965,-480.0,0.00047123,120]
[387857026,1758930698974,-480.0,0.00047123,120]
[387857027,1758930698983,-480.0,0.00047123,120]
[387857028,1758930698992,-480.0,0.00047123,120]
[387857029,1758930699000,-491.74022785,0.00047123,120]
[387857030,1758930699009,-480.0,0.00047123,120]
[387857031,1758930699018,-482.98381766,0.00047123,120]
[387857032,1758930699028,-480.0,0.00047123,120]
[387857033,1758930699037,-1122.86,0.00047123,120]
[387857034,1758930699046,-578.52,0.00047123,120]
[387857035,1758930699056,-480.0,0.00047123,120]
[387857036,1758930699064,-512.15,0.00047123,120]
[387857037,1758930699073,-480.0,0.00047123,120]
[387857038,1758930699083,-541.18,0.00047123,120]
[387857039,1758930699092,-737.02,0.00047123,120]
[387857040,1758930699101,-706.32,0.00047123,120]
[387857041,1758930699109,-341.65240879,0.00047123,120]
[387857042,1758930699119,-480.0,0.00047123,30]
[387857043,1758930699128,-480.0,0.00047123,120]
[387857044,1758930699137,-480.0,0.00047123,120]
[387857045,1758930699147,-683.22,0.00047123,120]
[387857046,1758930699155,-480.0,0.00047123,120]
[387857047,1758930699165,-480.0,0.00047123,120]
[387857048,1758930699174,-1082.49,0.00047123,120]
[387857049,1758930699183,-483.21197922,0.00047123,120]
[387857050,1758930699192,-480.0,0.00047123,120]
[387857051,1758930699201,-480.0,0.00047123,120]
[387857052,1758930699211,-481.42039899,0.00047123,120]
[387857053,1758930699220,-480.0,0.00047123,120]
[387857054,1758930699229,-480.0,0.00047123,120]
[387857055,1758930699238,-480.0,0.00047123,120]
[387857056,1758930699247,-480.0,0.00047123,120]
[387857057,1758930699256,-480.0,0.00047123,120]
[387857058,1758930699265,-480.0,0.00047123,120]
[387857059,1758930699274,-480.97672904,0.00047123,120]
[387857060,1758930699283,-480.0,0.00047123,120]
[387857061,1758930699292,-484.60596978,0.00047123,120]
[387857062,1758930699302,-480.0,0.00047123,120]
[387857063,1758930699311,-480.0,0.00047123,120]
[387857064,1758930699320,-480.0,0.00047123,120]
[387857065,1758930699329,-480.0,0.00047123,120]
[387857066,1758930699338,-480.0,0.00047123,120]
[387857067,1758930699348,-480.0,0.00047123,120]
[387857068,1758930699357,-480.0,0.00047123,120]
[387857069,1758930699366,-699.76,0.00047123,120]
[387857070,1758930699375,-480.0,0.00047123,120]
[387857071,1758930699384,-480.0,0.00047123,120]
[387857072,1758930699393,-480.0,0.00047123,120]
[387857073,1758930699402,-480.0,0.00047123,120]
[387857074,1758930699412,-480.0,0.00047123,120]
[387857075,1758930699421,-480.0,0.00047123,120]
[387857076,1758930699430,-480.0,0.00047123,120]
[387857077,1758930699439,-480.0,0.00047123,120]
[387857078,1758930699448,-480.0,0.00047123,120]
[387857079,1758930699457,-480.0,0.00047123,120]
[387857080,1758930699466,-480.0,0.00047123,120]
[387857081,1758930699475,-483.46322731,0.00047123,120]
[387857082,1758930699485,-1287.22,0.00047123,120]
[387857083,1758930699495,-480.0,0.00047123,120]
[387857084,1758930699504,-1144.78,0.00047123,120]
[387857085,1758930699514,-480.0,0.00047123,120]
[387857086,1758930699523,-207.20684623,0.00047123,120]
[387857087,1758930699533,-1111.83,0.00047123,120]
[387857088,1758930699542,-480.0,0.00047123,120]
[387857089,1758930699551,-480.0,0.00047123,120]
[387857090,1758930699560,-480.0,0.00047123,120]
[387857091,1758930699570,-480.0,0.00047123,120]
[387857092,1758930699579,-480.0,0.00047123,120]
[387857093,1758930699588,-736.45,0.00047123,120]
[387857094,1758930699598,-480.0,0.00047123,120]
[387857095,1758930699607,-480.0,0.00047123,120]
[387857096,1758930699616,-480.0,0.00047123,120]
[387857097,1758930699625,-529.02759896,0.00047123,120]
[387857098,1758930699634,-479.11974422,0.00047123,120]
[387857099,1758930699643,-1736.26,0.00047123,120]
[387857100,1758930699652,-480.0,0.00047123,120]
[387857101,1758930699662,-480.0,0.00047123,120]
[387857102,1758930699673,-996.24,0.00047123,120]
[387857103,1758930699682,-480.0,0.00047123,120]
[387857104,1758930699692,-480.0,0.00047123,120]
[387857105,1758930699701,-480.0,0.00047123,120]
[387857106,1758930699713,-665.94,0.00047123,120]
[387857107,1758930699722,-480.0,0.00047123,120]
[387857108,1758930699732,-480.0,0.00047123,120]
[387857109,1758930699742,-720.74,0.00047123,120]
[387857110,1758930699753,-480.0,0.00047123,120]
[387857111,1758930699763,-1950.02,0.00047123,120]
[387857112,1758930699772,-480.0,0.00047123,120]
[387857113,1758930699780,-480.0,0.00047123,120]
[387857114,1758930699789,-2666.53,0.00047123,120]
[387857115,1758930699798,-1001.23,0.00047123,120]
[387857116,1758930699807,-808.71,0.00047123,120]
[387857117,1758930699817,-480.0,0.00047123,120]
[387857118,1758930699826,-587.04959634,0.00047123,120]
[387857119,1758930699835,-480.0,0.00047123,120]
[387857120,1758930699845,-480.0,0.00047123,120]
[387857121,1758930699854,-891.41,0.00047123,120]
[387857122,1758930699863,-480.0,0.00047123,120]
[387857123,1758930699873,-480.0,0.00047123,120]
[387857124,1758930699883,-480.0,0.00047123,120]
[387857125,1758930699892,-480.0,0.00047123,120]
[387857126,1758930699901,-480.0,0.00047123,120]
[387857127,1758930699910,-480.0,0.00047123,120]
[387857128,1758930699920,-480.0,0.00047123,120]
[387857129,1758930699929,-855.83,0.00047123,120]
[387857130,1758930699939,-1161.26,0.00047123,120]
[387857131,1758930699948,-480.0,0.00047123,120]
[387857132,1758930699957,-480.0,0.00047123,120]
[387857133,1758930699966,-480.0,0.00047123,120]
[387857134,1758930699976,-480.0,0.00047123,120]
[387857135,1758930699986,-480.0,0.00047123,120]
[387857136,1758930699994,-652.45,0.00047123,120]
[387857137,1758930700003,-480.0,0.00047123,120]
[387857138,1758930700013,-480.0,0.00047123,120]
[387857139,1758930700022,-480.0,0.00047123,120]
[387857140,1758930700033,-480.0,0.00047123,120]
[387857141,1758930700043,-480.0,0.00047123,120]
[387857142,1758930700052,-480.0,0.00047123,120]
[387857143,1758930700062,-480.0,0.00047123,120]
[387857144,1758930700072,-1530.53,0.00047123,120]
[387857145,1758930700081,-480.0,0.00047123,120]
[387857146,1758930700091,-698.24,0.00047123,120]
[387857147,1758930700100,-487.33,0.00047123,120]
[387857148,1758930700109,-480.0,0.00047123,120]
[387857149,1758930700119,-403.03833757,0.00047123,120]
[387857150,1758930700128,-480.0,0.00047123,120]
[387857151,1758930700138,-480.0,0.00047123,120]
[387857152,1758930700149,-2777.42,0.00047123,120]
[387857153,1758930700158,-993.47,0.00047123,120]
[387857154,1758930700167,-480.0,0.00047123,120]
[387857155,1758930700177,-480.0,0.00047123,120]
[387857156,1758930700187,-480.0,0.00047123,120]
[387857157,1758930700196,-480.0,0.00047123,120]
[387857158,1758930700206,-1595.64,0.00047123,120]
[387857159,1758930700215,-631.56,0.00047123,120]
[387857160,1758930700225,-1096.6,0.00047123,120]
[387857161,1758930700235,-608.43,0.00047123,120]
[387857162,1758930700245,-480.0,0.00047123,120]
[387857163,1758930700254,-480.0,0.00047123,120]
[387857164,1758930700264,-1419.73,0.00047123,120]
[387857165,1758930700273,-765.39,0.00047123,120]
[387857166,1758930700283,-480.0,0.00047123,120]
[387857167,1758930700293,-623.21,0.00047123,120]
[387857168,1758930700303,-627.77,0.00047123,120]
[387857169,1758930700312,-480.0,0.00047123,120]
[387857170,1758930700322,-480.0,0.00047123,120]
[387857171,1758930700332,-480.0,0.00047123,120]
[387857172,1758930700342,-480.0,0.00047123,120]
[387857173,1758930700351,-565.15,0.00047123,120]
[387857174,1758930700361,-480.0,0.00047123,120]
[387857175,1758930700371,-1372.39,0.00047123,120]
[387857176,1758930700380,-497.96,0.00047123,120]
[387857177,1758930700390,-675.41,0.00047123,120]
[387857178,1758930700400,-480.0,0.00047123,120]
[387857179,1758930700410,-480.0,0.00047123,120]
[387857180,1758930700419,-480.0,0.00047123,120]
[387857181,1758930700429,-166.43638802,0.00047123,120]
[387857182,1758930700439,-480.0,0.00047123,120]
[387857183,1758930700449,-480.0,0.00047123,120]
[387857184,1758930700458,-725.35,0.00047123,120]
[387857185,1758930700468,-484.82122021,0.00047123,120]
[387857186,1758930700477,-480.0,0.00047123,120]
[387857187,1758930700487,-480.0,0.00047123,7]
[387857188,1758930700496,-480.0,0.00047123,120]
[387857189,1758930700505,-480.0,0.00047123,120]
[387857190,1758930700514,-803.64,0.00047123,120]
[387857191,1758930700523,-480.0,0.00047123,120]
[387857192,1758930700533,-206.09018414,0.00047123,120]
[387857193,1758930700542,-480.0,0.00047123,120]
[387857194,1758930700551,-1127.71,0.00047123,120]
[387857195,1758930700561,-1281.76,0.00047123,120]
[387857196,1758930700570,-483.62270877,0.00047123,120]
[387857197,1758930700580,-421.86171393,0.00047123,120]
[387857198,1758930700590,-480.0,0.00047123,120]
[387857199,1758930700600,-627.64,0.00047123,120]
[387857200,1758930700609,-480.0,0.00047123,120]
[387857201,1758930700618,-480.0,0.00047123,120]
[387857202,1758930700628,-1517.89,0.00047123,120]
[387857203,1758930700639,-3303.18,0.00047123,120]
[387857204,1758930700648,-480.0,0.00047123,120]
[387857205,1758930700657,-480.0,0.00047123,120]
[387857206,1758930700667,-543.89,0.00047123,120]
[387857207,1758930700680,-581.38865092,0.00047123,120]
[387857208,1758930700689,-480.0,0.00047123,120]
[387857209,1758930700699,-480.0,0.00047123,120]
[387857210,1758930700708,-1352.86,0.00047123,120]
[387857211,1758930700719,-480.0,0.00047123,120]
[387857212,1758930700728,-480.0,0.00047123,120]
[387857213,1758930700737,-500.0,0.00047123,120]
[387857214,1758930700749,-480.0,0.00047123,120]
[387857215,1758930700758,-480.0,0.00047123,120]
[387857216,1758930700768,-574.04,0.00047123,120]
[387857217,1758930700777,-480.0,0.00047123,120]
[387857218,1758930700787,-487.18844535,0.00047123,120]
[387857219,1758930700796,-480.0,0.00047123,120]
[387857220,1758930700806,-480.0,0.00047123,120]
[387857221,1758930700815,-480.0,0.00047123,120]
[387857222,1758930700824,-823.76,0.00047123,120]
[387857223,1758930700833,-480.0,0.00047123,120]
[387857224,1758930700842,-480.0,0.00047123,120]
[387857225,1758930700852,-4361.36,0.00047123,120]
[387857226,1758930700861,-628.79805265,0.00047123,120]
[387857227,1758930700871,-480.0,0.00047123,120]
[387857228,1758930700881,-465.02700201,0.00047123,120]
[387857229,1758930700891,-480.0,0.00047123,120]
[387857230,1758930700900,-2337.28,0.00047123,120]
[387857231,1758930700909,-618.58,0.00047123,120]
[387857232,1758930700918,-1619.76,0.00047123,120]
[387857233,1758930700927,-1719.52,0.00047123,120]
[387857234,1758930700937,-480.0,0.00047123,120]
[387857235,1758930700947,-749.36,0.00047123,120]
[387857236,1758930700956,-547.32177774,0.00047123,120]
[387857237,1758930700965,-550.19607532,0.00047123,120]
[387857238,1758930701162,-480.0,0.00047123,120]
[387857239,1758930701172,-480.0,0.00047123,120]
[387857240,1758930701181,-831.55,0.00047123,120]
[387857241,1758930701191,-1816.63,0.00047123,120]
[387857242,1758930701200,-480.0,0.00047123,120]
[387857243,1758930701209,-480.0,0.00047123,120]
[387857244,1758930701219,-480.0,0.00047123,120]
[387857245,1758930701229,-151.0,0.00047123,120]
[387857246,1758930701238,-480.0,0.00047123,120]
[387857247,1758930701248,-1056.72,0.00047123,120]
[387857248,1758930701257,-480.0,0.00047123,120]
[387857249,1758930701268,-151.0,0.00047123,120]
[387857250,1758930701277,-480.0,0.00047123,120]
[387857251,1758930701287,-480.0,0.00047123,120]
[387857252,1758930701296,-1861.19,0.00047123,120]
[387857253,1758930701306,-480.0,0.00047123,120]
[387857254,1758930701316,-480.0,0.00047123,120]
[387857255,1758930701326,-310.487216,0.00047123,120]
[387857256,1758930701336,-480.0,0.00047123,120]
[387857257,1758930701345,-310.487216,0.00047123,120]
[387857258,1758930701355,-642.64,0.00047123,120]
[387857259,1758930701364,-480.0,0.00047123,120]
[387857260,1758930701374,-752.340432,0.00047123,15]
[387857261,1758930701384,-3009.0,0.00047123,120]
[387857262,1758930701394,-310.487216,0.00047123,120]
[387857263,1758930701403,-258.61778875,0.00047123,120]
[387857264,1758930701412,-310.487219,0.00047123,120]
[387857265,1758930701422,-752.340432,0.00047123,15]
[387857266,1758930701432,-480.0,0.00047123,120]
[387857267,1758930701441,-480.0,0.00047123,120]
[387857268,1758930701451,-500.0,0.00047123,120]
[387857269,1758930701460,-480.0,0.00047123,120]
[387857270,1758930701470,-480.0,0.00047123,120]
[387857271,1758930701479,-2268.32,0.00047123,120]
[387857272,1758930701488,-839.4,0.00047123,120]